bitfinex/quotes_ETHUSD_20250803
["timestamp","ask_amount","ask_price","bid_price","bid_amount"]
[1754179580999,1.4918,3408.5,3407.9,0.002]
[1754179581399,0.50580107,3408.4,3407.9,0.002]
[1754179581600,0.4762,3408.4,3407.9,0.002]
[1754179581821,0.50580107,3408.3,3407.9,0.002]
[1754179582003,0.97140107,3408.3,3407.9,0.002]
[1754179582205,0.4316,3408.2,3407.9,0.002]
[1754179582407,0.02960107,3408.1,3407.9,0.002]
[1754179582611,0.1464,3408.0,3407.9,0.002]
[1754179583239,1.0774,3408.0,3407.9,0.002]
[1754179584652,0.1464,3408.0,3407.9,0.002]
[1754179584835,0.1464,3408.0,3407.9,0.9218]
[1754179585046,0.1464,3408.0,3407.9,0.002]
[1754179585350,0.1464,3408.0,3407.9,0.9218]
[1754179585652,0.1464,3408.0,3407.9,0.002]
[1754179586528,0.1464,3408.0,3407.9,0.9218]
[1754179587548,4.915,3408.7,3407.9,0.9218]
[1754179587751,0.1464,3408.5,3408.0,0.9198]
[1754179588057,0.1464,3408.5,3408.1,0.9198]
[1754179588208,0.1474,3408.8,3408.2,0.9198]
[1754179588409,0.001,3408.8,3408.6,0.1464]
[1754179588656,0.001,3408.8,3408.7,1.0662]
[1754179589169,0.001,3408.8,3408.7,0.1464]
[1754179589358,0.001,3408.8,3408.7,1.0662]
[1754179591858,0.001,3408.8,3408.7,1.28443815]
[1754179593128,0.001,3408.8,3408.7,1.83443815]
[1754179593328,0.001,3408.8,3408.7,2.01788197]
[1754179595876,0.001,3408.8,3408.7,1.46788197]
[1754179596228,0.001,3408.8,3408.7,0.54808197]
[1754179596432,0.001,3408.8,3408.7,0.36463815]
[1754179596627,0.001,3408.8,3408.7,0.21823815]
[1754179596970,0.001,3408.8,3408.5,0.1464]
[1754179597866,0.5004,3408.8,3408.5,0.1464]
[1754179598272,0.001,3408.8,3408.5,0.1464]
[1754179598490,0.001,3408.8,3408.6,0.94913755]
[1754179598644,0.001,3408.8,3408.7,1.0662]
[1754179598829,0.001,3408.8,3408.7,0.6084]
[1754179599244,0.001,3408.8,3408.7,1.0662]
[1754179600629,0.001,3408.8,3408.7,1.28699434]
[1754179601875,0.001,3408.8,3408.7,6.07699434]
[1754179602077,0.001,3408.8,3408.7,9.98469377]
[1754179602239,0.001,3408.8,3408.7,13.27125201]
[1754179602440,0.001,3408.8,3408.7,18.18025201]
[1754179602643,0.001,3408.8,3408.7,19.94525201]
[1754179602960,0.001,3409.0,3408.9,6.4834976]
[1754179603135,0.001,3409.0,3408.9,6.83638612]
[1754179603336,0.001,3409.0,3408.9,6.98278612]
[1754179603566,0.001,3409.0,3408.9,7.90258612]
[1754179604176,0.001,3409.0,3408.9,12.81158612]
[1754179604358,0.001,3409.0,3408.9,15.60944619]
[1754179604934,0.001,3409.0,3408.9,7.76694859]
[1754179605134,0.001,3409.0,3408.9,7.21694859]
[1754179605366,0.001,3409.0,3408.9,3.1464]
[1754179605564,0.001,3409.0,3408.9,8.0544]
[1754179605765,0.001,3409.0,3408.9,8.9742]
[1754179606850,0.001,3409.0,3408.9,9.5242]
[1754179607180,0.001,3409.0,3408.9,9.3778]
[1754179607349,0.001,3409.0,3408.9,11.18925943]
[1754179607548,0.001,3409.0,3408.9,14.12275703]
[1754179607852,0.001,3409.0,3408.9,11.18925943]
[1754179608056,0.001,3409.0,3408.9,14.12275703]
[1754179608788,0.001,3409.0,3408.9,11.30678043]
[1754179608950,0.001,3409.0,3408.9,6.39878043]
[1754179609151,0.001,3409.0,3408.9,11.30478043]
[1754179609651,0.001,3409.0,3408.9,6.39878043]
[1754179609852,0.001,3409.0,3408.9,11.30478043]
[1754179611757,0.001,3409.0,3408.9,14.23827803]
[1754179611957,0.001,3409.0,3408.9,11.30478043]
[1754179613593,0.001,3409.0,3408.9,14.23827803]
[1754179614385,0.001,3409.0,3408.9,11.30478043]
[1754179616186,0.001,3409.0,3408.9,14.23827803]
[1754179616387,0.001,3409.0,3408.9,14.59116655]
[1754179619503,3.726e-05,3409.0,3408.9,14.59116655]
[1754179620304,0.001,3409.2,3408.9,14.59116655]
[1754179620305,0.001,3409.2,3409.1,3.48332551]
[1754179620536,0.001,3409.2,3409.1,8.88866324]
[1754179620738,0.001,3409.2,3409.1,11.44984921]
[1754179621039,0.001,3409.2,3409.1,14.52957472]
[1754179621194,0.001,3409.2,3409.1,11.59624921]
[1754179621392,0.001,3409.2,3409.1,14.52957472]
[1754179621705,0.001,3409.2,3409.1,11.59624921]
[1754179622135,0.001,3409.2,3409.1,14.52957472]
[1754179622300,0.001,3409.2,3409.1,14.88246324]
[1754179622500,0.001,3409.2,3409.1,9.98046324]
[1754179622710,0.001,3409.2,3409.1,14.88146324]
[1754179622930,0.4901,3410.8,3409.7,0.55]
[1754179623118,0.9594,3410.8,3409.9,3.55]
[1754179623324,0.4693,3410.8,3410.7,0.1464]
[1754179623507,7.049,3412.5,3410.7,0.1464]
[1754179623708,0.001,3414.4,3410.8,3.55]
[1754179623709,0.4693,3412.4,3410.8,3.55]
[1754179623916,0.1464,3412.2,3411.7,0.1464]
[1754179624259,0.9594,3412.1,3411.7,0.1464]
[1754179624430,0.9594,3412.0,3411.7,0.1464]
[1754179624600,0.1464,3412.7,3411.9,0.1464]
[1754179624802,0.4901,3412.3,3411.9,0.1464]
[1754179625011,0.1464,3412.9,3412.4,0.1464]
[1754179625700,0.9594,3412.8,3412.4,0.1464]
[1754179625900,0.9594,3412.7,3412.4,0.1464]
[1754179626103,0.9594,3412.6,3412.4,0.1464]
[1754179626303,0.9594,3412.5,3412.4,0.1464]
[1754179626797,1.1058,3412.5,3412.0,0.1464]
[1754179626997,0.9594,3412.4,3412.0,0.1464]
[1754179627226,0.9594,3412.4,3412.3,0.1464]
[1754179627618,0.9594,3412.4,3411.5,0.55]
[1754179627822,0.9594,3412.4,3412.3,0.1464]
[1754179628201,0.4693,3412.8,3412.3,0.1464]
[1754179628397,0.4901,3412.7,3412.4,0.02930488]
[1754179628601,0.4901,3413.0,3412.7,0.1464]
[1754179628837,0.4901,3412.9,3412.8,0.02930145]
[1754179629003,0.9594,3414.3,3412.9,0.55]
[1754179629207,0.9594,3414.2,3413.1,3.55]
[1754179629505,0.4901,3414.1,3413.1,3.55]
[1754179629699,0.4901,3414.1,3413.3,0.55]
[1754179630143,0.4693,3414.0,3413.0,4.896]
[1754179630349,0.4901,3413.9,3413.1,3.0]
[1754179630505,0.4693,3413.8,3412.1,0.55]
[1754179630702,0.4901,3413.7,3412.0,3.0]
[1754179630908,0.4693,3413.6,3412.3,3.0]
[1754179631145,0.4901,3413.5,3412.3,3.0]
[1754179631505,0.49890107,3413.4,3412.0,4.895]
[1754179631804,0.4901,3413.3,3412.1,0.4895]
[1754179632120,0.4693,3413.2,3411.9,4.894]
[1754179632472,0.51970107,3413.1,3411.2,0.4739]
[1754179632604,0.4693,3413.0,3411.4,3.0]
[1754179632808,0.4901,3412.9,3411.5,0.3]
[1754179633019,0.4693,3412.8,3411.6,3.0]
[1754179633360,0.4901,3412.7,3411.6,3.0]
[1754179633853,0.4901,3413.0,3411.7,1.4954]
[1754179634038,0.4901,3413.0,3411.7,2.33195]
[1754179634416,0.4901,3413.3,3411.9,0.55]
[1754179634618,0.4911,3413.3,3411.9,0.55]
[1754179634851,0.4911,3413.3,3412.1,0.55]
[1754179635062,0.001,3413.3,3412.3,0.55]
[1754179635355,0.001,3413.3,3412.4,0.4739]
[1754179635553,0.001,3413.3,3412.4,0.9454]
[1754179636142,0.001,3413.3,3412.5,0.55]
[1754179636351,0.001,3413.3,3412.6,0.20454]
[1754179637520,0.001,3413.3,3412.7,0.9454]
[1754179637951,0.001,3413.3,3412.6,0.20454]
[1754179638135,0.4901,3413.2,3411.8,3.0]
[1754179638333,0.49890107,3413.1,3411.5,4.891]
[1754179638566,0.4901,3413.0,3411.3,0.880911]
[1754179638734,0.4901,3413.0,3411.5,3.0]
[1754179638934,0.4901,3413.0,3411.4,4.891]
[1754179638935,0.4693,3412.9,3411.6,0.8771911]
[1754179639162,0.1464,3412.7,3412.2,0.1464]
[1754179639524,0.9594,3412.6,3412.2,0.1464]
[1754179640625,0.4901,3412.5,3412.2,0.1464]
[1754179640881,0.9594,3412.5,3411.3,0.880911]
[1754179641039,0.9594,3412.4,3411.0,0.21786077]
[1754179641231,0.98900107,3412.3,3410.7,0.10841117]
[1754179641438,0.9594,3412.2,3410.8,0.0162539]
[1754179641741,0.02960107,3412.1,3410.4,0.4739]
[1754179641925,0.8787,3412.0,3410.3,0.4715]
[1754179642265,0.90830107,3411.9,3410.4,0.4901]
[1754179642462,0.45810107,3411.9,3409.7,7.89]
[1754179642677,0.8787,3411.8,3410.4,0.2178805]
[1754179642825,1.45830107,3411.7,3409.8,1.4935]
[1754179643026,0.8787,3411.6,3409.8,1.4935]
[1754179643252,0.90830107,3411.5,3409.7,0.929]
[1754179643441,0.8787,3411.4,3409.7,0.929]
[1754179643659,0.02960107,3411.3,3409.7,0.929]
[1754179643857,0.8787,3411.3,3409.7,0.929]
[1754179644028,0.4285,3411.3,3409.8,0.8818]
[1754179644232,0.4502,3411.2,3409.8,0.8818]
[1754179644457,0.4285,3411.1,3409.8,0.8818]
[1754179644769,0.4502,3411.0,3409.8,0.8818]
[1754179645267,0.4502,3411.0,3409.8,1.10488353]
[1754179645466,0.4502,3411.0,3409.9,0.51429572]
[1754179645669,0.02960107,3410.9,3409.9,0.51429572]
[1754179645869,0.4502,3410.8,3409.9,0.51429572]
[1754179646779,0.02960107,3410.7,3409.8,1.10488353]
[1754179646929,0.4502,3410.6,3409.8,0.22308353]
[1754179647263,0.02960107,3410.5,3409.4,0.4601]
[1754179648673,0.4502,3410.6,3409.4,0.4601]
[1754179648885,0.4502,3410.6,3409.5,1.31493392]
[1754179649172,0.4502,3410.6,3409.6,0.4601]
[1754179649342,0.02960107,3410.5,3409.6,0.4601]
[1754179649541,0.4502,3410.6,3409.6,0.4601]
[1754179650143,0.4502,3410.9,3409.7,0.49822809]
[1754179650377,0.4502,3410.9,3409.8,0.6405362]
[1754179650573,0.4502,3410.9,3409.9,0.929]
[1754179650734,0.4502,3411.2,3410.0,0.48942551]
[1754179651036,0.4502,3411.9,3410.1,0.4689]
[1754179651235,0.1464,3411.2,3410.7,0.1464]
[1754179652379,0.1464,3411.2,3410.7,0.6065]
[1754179653156,0.4502,3411.9,3410.8,0.929]
[1754179653453,0.1464,3411.6,3411.1,0.1464]
[1754179653664,0.1464,3411.6,3411.2,0.929]
[1754179653850,0.1464,3411.8,3411.3,0.929]
[1754179654048,0.1464,3411.8,3411.3,1.0754]
[1754179654599,0.1464,3411.8,3411.3,0.1464]
[1754179654877,0.47980107,3411.7,3411.1,0.1464]
[1754179655080,0.1464,3411.6,3411.1,0.1464]
[1754179656341,0.0964,3411.6,3411.1,0.6065]
[1754179657081,7.045,3412.3,3411.1,0.6065]
[1754179657082,7.045,3412.3,3411.2,0.95831519]
[1754179657375,0.1464,3412.0,3411.5,0.1464]
[1754179657576,7.045,3412.3,3411.6,0.929]
[1754179657885,7.1914,3412.3,3411.8,0.1464]
[1754179658312,0.1464,3412.3,3411.8,0.1464]
[1754179658973,0.1464,3412.3,3411.8,0.6065]
[1754179659803,0.1464,3412.3,3411.8,0.1464]
[1754179660303,0.4502,3412.6,3410.7,3.0]
[1754179660304,0.47980107,3412.2,3410.7,3.0]
[1754179660503,0.1464,3411.9,3411.4,0.1464]
[1754179660714,0.1464,3411.9,3411.5,0.4601]
[1754179660868,0.1464,3411.9,3411.4,0.6153]
[1754179660869,0.1464,3411.9,3411.4,0.1464]
[1754179661208,0.1464,3411.9,3411.4,0.36992619]
[1754179661567,0.1464,3411.9,3411.4,1.29892619]
[1754179661767,0.1464,3411.9,3411.5,0.929]
[1754179662405,0.4502,3412.5,3411.6,0.929]
[1754179662719,1.98942928,3414.9,3411.4,0.22352619]
[1754179662720,0.4502,3413.1,3411.7,0.929]
[1754179663017,0.4502,3413.1,3411.8,0.929]
[1754179663186,0.4502,3413.1,3411.9,0.4601]
[1754179663379,0.1464,3412.7,3412.2,0.1464]
[1754179663881,0.1464,3412.7,3412.2,0.6065]
[1754179664087,0.1464,3412.7,3412.2,0.1464]
[1754179664350,0.1464,3412.7,3412.2,0.6065]
[1754179664612,0.90830107,3412.6,3412.0,0.1464]
[1754179664815,0.1464,3412.5,3412.0,0.1464]
[1754179664974,0.02960107,3412.4,3412.0,0.1464]
[1754179665508,0.5966,3412.5,3411.5,0.4601]
[1754179665717,0.1464,3412.5,3411.9,0.1464]
[1754179665926,0.1464,3412.5,3411.0,3.0]
[1754179665927,0.001,3413.3,3412.0,0.929]
[1754179666209,0.1464,3413.1,3412.4,0.1464]
[1754179666376,0.1464,3413.1,3411.7,0.55]
[1754179666571,0.1464,3413.1,3412.7,0.1464]
[1754179666770,0.1464,3413.2,3412.8,0.929]
[1754179667810,0.001,3413.3,3412.9,0.929]
[1754179667973,0.001,3413.3,3413.1,0.1464]
[1754179668708,0.001,3413.3,3413.1,0.6065]
[1754179669319,0.4502,3413.2,3412.4,0.4689]
[1754179669538,0.1464,3413.1,3412.7,0.1464]
[1754179671142,0.1464,3413.1,3412.7,0.6065]
[1754179672143,0.1464,3413.1,3412.8,0.4896]
[1754179672304,0.001,3413.3,3412.8,0.9636]
[1754179672510,0.001,3413.3,3413.2,0.1464]
[1754179673124,0.001,3413.3,3413.2,1.11]
[1754179674619,0.001,3413.3,3413.2,0.1464]
[1754179675033,0.001,3413.3,3413.2,0.36570982]
[1754179675317,0.001,3413.3,3413.2,0.85530982]
[1754179675537,0.001,3413.3,3413.2,1.32930982]
[1754179676608,0.001,3413.3,3413.2,0.36570982]
[1754179678692,0.001,3413.3,3413.2,0.21930982]
[1754179678986,0.001,3413.3,3412.9,0.1464]
[1754179679188,0.001,3413.3,3412.9,0.636]
[1754179680186,0.001,3413.3,3413.0,0.4896]
[1754179680400,0.001,3413.3,3413.0,0.9636]
[1754179680703,0.001,3413.3,3413.1,0.9636]
[1754179680868,0.001,3413.3,3413.2,0.1464]
[1754179681447,0.9262,3413.3,3412.2,0.9636]
[1754179681658,0.1464,3413.0,3412.5,0.1464]
[1754179681994,0.02960107,3412.9,3411.6,0.4896]
[1754179682145,0.1464,3412.4,3412.0,0.1464]
[1754179682546,0.1464,3412.4,3412.0,0.636]
[1754179682847,0.001,3413.3,3411.4,0.22520042]
[1754179682848,0.02960107,3412.3,3411.4,0.22520042]
[1754179683156,0.1464,3411.9,3410.9,0.1464]
[1754179683357,0.1464,3411.4,3410.9,0.1464]
[1754179683557,0.1464,3411.1,3410.5,0.21834442]
[1754179683784,0.1464,3410.8,3409.9,0.4896]
[1754179683990,0.1464,3410.8,3410.2,0.1464]
[1754179684525,0.1464,3410.8,3410.3,0.4896]
[1754179684721,0.4591,3411.2,3409.9,0.9636]
[1754179684897,0.1464,3410.5,3410.3,0.22329829]
[1754179685096,0.1464,3410.5,3410.0,0.1464]
[1754179685298,5.3261,3411.8,3410.4,0.1464]
[1754179685611,0.1464,3411.1,3410.6,0.1464]
[1754179685814,0.1464,3411.1,3410.7,0.9636]
[1754179686523,0.4591,3411.0,3410.2,0.4896]
[1754179686829,0.1464,3410.8,3410.3,0.1464]
[1754179687228,0.95480107,3410.7,3410.3,0.1464]
[1754179687520,0.4591,3410.7,3409.8,0.4896]
[1754179687726,0.1464,3410.2,3409.8,0.4896]
[1754179688111,0.1464,3410.2,3409.7,0.1464]
[1754179688436,0.1464,3410.6,3410.1,0.1464]
[1754179688929,0.1464,3410.6,3410.2,0.4896]
[1754179689085,0.1464,3411.1,3410.3,0.9636]
[1754179689286,0.1464,3410.9,3410.4,0.1464]
[1754179689597,0.4591,3411.3,3409.6,0.4896]
[1754179689802,0.1464,3410.5,3409.9,0.1464]
[1754179690201,0.55,3411.6,3409.5,0.22349124]
[1754179690202,0.9252,3410.6,3409.5,0.22349124]
[1754179690417,5.3231,3411.2,3409.6,0.4896]
[1754179690642,0.1464,3410.7,3410.2,0.1464]
[1754179690815,0.1464,3410.7,3410.2,0.636]
[1754179691010,0.1464,3410.7,3410.2,0.1464]
[1754179691223,0.1464,3410.7,3410.3,0.9636]
[1754179691388,0.1464,3410.7,3410.4,0.9636]
[1754179691594,0.1464,3410.7,3410.4,0.4896]
[1754179691793,0.1464,3410.7,3410.2,0.1464]
[1754179692196,0.1464,3410.7,3410.2,0.636]
[1754179693242,0.02960107,3410.6,3410.2,0.1464]
[1754179693533,0.1464,3410.7,3410.2,0.1464]
[1754179693730,0.4591,3410.5,3409.8,0.002]
[1754179693941,0.1464,3410.3,3409.8,0.1484]
[1754179694320,0.1464,3410.3,3409.9,0.9636]
[1754179694637,0.1464,3410.3,3410.0,0.9636]
[1754179694795,0.1464,3410.9,3410.2,0.1464]
[1754179695130,11.91,3411.5,3410.3,0.9636]
[1754179695328,0.1464,3411.0,3410.6,0.1464]
[1754179696296,0.1464,3411.0,3409.9,0.4896]
[1754179696297,0.02960107,3410.9,3409.9,0.4896]
[1754179696490,0.1464,3410.8,3410.3,0.1464]
[1754179696740,0.1464,3410.8,3410.3,0.636]
[1754179697435,0.1464,3410.8,3410.3,1.11]
[1754179697730,0.1464,3410.5,3410.0,0.1464]
[1754179697905,4.861,3411.2,3410.1,0.99292465]
[1754179698230,0.1464,3410.8,3410.3,0.1464]
[1754179698419,0.1464,3410.8,3410.4,0.474]
[1754179698732,0.1464,3410.8,3410.5,0.9636]
[1754179699045,0.1464,3410.8,3410.6,0.4896]
[1754179699936,7.047,3411.5,3410.7,0.9636]
[1754179700230,0.1464,3411.2,3410.7,1.11]
[1754179700635,0.1464,3411.2,3410.8,0.4896]
[1754179700797,0.1464,3411.2,3410.8,0.9636]
[1754179701135,0.1464,3411.2,3410.8,0.4896]
[1754179701836,0.1464,3411.2,3410.9,0.4896]
[1754179702338,0.1464,3411.2,3409.8,0.002]
[1754179702339,0.1464,3411.2,3410.1,0.4758]
[1754179702497,0.9242,3411.1,3409.9,0.9226]
[1754179702695,0.52010107,3411.0,3409.9,1.069]
[1754179702937,0.1464,3410.4,3409.9,1.069]
[1754179703131,0.1464,3410.4,3409.9,0.1464]
[1754179703340,0.02960107,3410.3,3409.8,0.002]
[1754179703543,0.1464,3410.2,3409.8,0.002]
[1754179703905,0.02960107,3410.1,3409.8,0.002]
[1754179704438,0.6369,3410.0,3409.8,0.002]
[1754179705405,0.02960107,3409.9,3409.8,0.002]
[1754179705753,0.4905,3409.9,3409.8,0.002]
[1754179706242,0.1464,3410.0,3409.8,0.002]
[1754179707747,0.4905,3410.7,3409.9,0.4758]
[1754179707944,0.1464,3410.2,3409.8,0.002]
[1754179708147,0.02960107,3410.1,3409.8,0.002]
[1754179708307,0.1464,3409.9,3409.8,0.002]
[1754179710335,0.5801,3409.9,3409.8,0.002]
[1754179710539,1.0706,3409.9,3409.8,0.002]
[1754179710847,0.6369,3409.9,3409.8,0.002]
[1754179711046,0.1464,3409.9,3409.8,0.002]
[1754179711642,0.1464,3409.9,3409.8,0.9246]
[1754179712013,0.1464,3410.0,3409.8,0.9246]
[1754179712208,0.1464,3410.0,3409.8,0.002]
[1754179712451,0.1464,3410.0,3409.9,0.9226]
[1754179712865,4.854,3410.4,3409.9,0.9226]
[1754179713159,0.1464,3410.2,3410.0,0.9226]
[1754179714354,0.9242,3410.1,3409.8,0.002]
[1754179714523,0.95380107,3410.1,3409.8,0.002]
[1754179714734,0.1464,3409.9,3409.8,0.002]
[1754179715055,0.17600107,3409.9,3409.8,0.002]
[1754179715354,1.10020107,3409.9,3409.8,0.002]
[1754179715860,0.1464,3409.9,3409.8,0.002]
[1754179716750,4.9974,3409.9,3409.8,0.002]
[1754179717256,0.1464,3409.9,3409.8,0.002]
[1754179718559,0.1464,3410.2,3409.8,0.9246]
[1754179718941,0.1464,3410.2,3409.8,0.4488]
[1754179719255,0.1464,3410.2,3409.9,0.4758]
[1754179719463,0.1464,3410.2,3409.9,0.9226]
[1754179719956,4.85,3410.3,3410.0,0.9226]
[1754179720121,4.85,3410.3,3409.8,0.002]
[1754179720319,0.21835233,3412.9,3409.9,0.9226]
[1754179720320,7.5375,3411.5,3409.9,0.9226]
[1754179720521,7.047,3411.5,3410.0,0.9226]
[1754179720870,7.047,3411.5,3410.1,0.9226]
[1754179721071,7.047,3411.5,3410.2,0.9226]
[1754179721217,7.047,3411.5,3410.3,0.9226]
[1754179721529,7.047,3411.5,3410.4,1.10513971]
[1754179721732,7.047,3411.5,3410.5,0.9226]
[1754179721939,0.001,3411.6,3410.6,0.9226]
[1754179722313,0.001,3411.6,3410.7,0.9226]
[1754179722541,0.001,3411.6,3410.8,0.9226]
[1754179723164,0.001,3411.6,3410.9,0.9226]
[1754179723666,0.001,3411.6,3411.0,0.4758]
[1754179724361,0.001,3411.6,3411.0,0.70168157]
[1754179725567,0.001,3411.6,3411.1,0.9226]
[1754179725769,0.001,3411.6,3410.6,0.4468]
[1754179725985,0.001,3411.6,3410.9,0.4468]
[1754179726280,0.001,3411.6,3411.0,0.4758]
[1754179726783,0.001,3411.6,3411.1,0.47611605]
[1754179727142,0.001,3411.6,3411.2,0.4758]
[1754179727560,0.001,3411.6,3411.3,0.4468]
[1754179728148,0.001,3411.6,3411.4,0.4758]
[1754179728464,0.001,3411.6,3411.4,0.9226]
[1754179728787,0.001,3411.6,3411.5,0.4468]
[1754179729087,0.001,3411.6,3411.5,0.9226]
[1754179730282,0.001,3411.6,3411.5,1.069]
[1754179733038,0.001,3411.6,3411.5,1.19138087]
[1754179733243,0.001,3411.6,3411.5,1.069]
[1754179733907,0.001,3411.6,3411.5,0.1464]
[1754179734623,0.001,3411.6,3411.1,3.0]
[1754179734794,0.001,3411.6,3411.5,0.1464]
[1754179735186,0.001,3411.6,3411.5,1.0759]
[1754179735370,0.001,3411.6,3411.5,0.1464]
[1754179735594,0.4948,3412.2,3411.2,1.36392799]
[1754179735793,0.1464,3412.0,3411.5,0.1464]
[1754179736119,0.4948,3411.9,3411.5,0.1464]
[1754179737211,0.1474,3412.0,3411.5,0.1464]
[1754179737597,0.4948,3411.9,3411.5,0.1464]
[1754179737985,0.577,3412.0,3411.5,0.1464]
[1754179738322,0.4948,3411.8,3411.5,0.1464]
[1754179738521,0.02960107,3411.7,3411.0,0.21497986]
[1754179738702,0.4948,3411.6,3411.3,0.1464]
[1754179739021,0.1464,3411.8,3411.3,0.1464]
[1754179739176,0.4948,3411.5,3411.3,0.1464]
[1754179739377,0.02960107,3411.4,3411.0,0.22144788]
[1754179739576,0.4948,3411.3,3410.5,0.4535]
[1754179739882,0.1464,3411.2,3410.8,0.1464]
[1754179740308,0.1464,3411.2,3410.9,0.9295]
[1754179740489,0.1464,3411.6,3411.1,0.1464]
[1754179741022,0.6412,3411.6,3411.1,0.1464]
[1754179741773,0.1464,3411.6,3411.1,0.1464]
[1754179741977,0.4948,3411.5,3411.1,0.1464]
[1754179742985,0.577,3411.6,3411.1,0.1464]
[1754179742986,0.1474,3411.6,3411.1,0.1464]
[1754179743515,0.6422,3411.6,3411.1,0.1464]
[1754179744012,0.4948,3411.5,3411.0,0.21861598]
[1754179744215,0.4948,3411.5,3410.8,0.002]
[1754179744216,0.1464,3411.2,3410.8,0.002]
[1754179745009,0.6412,3411.2,3410.8,0.002]
[1754179745197,0.1464,3411.2,3410.8,0.002]
[1754179745785,0.1464,3411.2,3410.8,0.478]
[1754179746218,0.1464,3411.4,3410.9,1.0759]
[1754179746513,0.1464,3411.4,3410.8,0.002]
[1754179746514,0.001,3411.6,3411.3,0.1464]
[1754179746723,0.001,3411.6,3411.0,0.9295]
[1754179746880,0.1474,3411.6,3411.1,0.1464]
[1754179747081,0.001,3411.6,3411.2,0.9295]
[1754179747282,0.001,3411.6,3411.3,1.0759]
[1754179747515,0.001,3411.6,3411.0,0.476]
[1754179747706,0.1474,3411.6,3411.1,0.1464]
[1754179748017,0.1474,3411.6,3411.1,0.6224]
[1754179748642,0.1474,3411.6,3411.2,0.476]
[1754179748799,0.1474,3411.6,3411.2,0.9295]
[1754179749000,0.001,3411.6,3411.5,0.1464]
[1754179749204,0.001,3411.6,3411.5,1.0759]
[1754179750244,0.001,3411.6,3411.5,1.6259]
[1754179750626,0.001,3411.6,3411.5,2.14128706]
[1754179751201,0.001,3411.6,3411.5,5.07254896]
[1754179751423,0.001,3411.6,3411.5,5.17059967]
[1754179751748,0.001,3411.6,3411.5,5.14128706]
[1754179752367,0.001,3411.6,3411.5,4.59128706]
[1754179752572,0.001,3411.6,3411.5,4.23849]
[1754179754766,0.001,3411.6,3411.5,4.87969]
[1754179755127,0.001,3411.6,3411.5,3.30899]
[1754179755658,0.001,3411.6,3411.5,4.23849]
[1754179756780,0.001,3411.6,3411.5,4.81780261]
[1754179756933,0.001,3411.6,3411.5,4.78849]
[1754179759961,0.001,3411.6,3411.5,4.33499]
[1754179760339,0.001,3411.6,3411.5,4.78849]
[1754179760741,0.001,3411.6,3411.5,4.905943]
[1754179760946,0.001,3411.6,3411.5,4.93525561]
[1754179761479,0.001,3411.6,3411.5,4.905943]
[1754179761974,0.001,3411.6,3411.5,3.426443]
[1754179763033,0.001,3411.6,3411.5,0.263853]
[1754179763236,0.001,3411.6,3411.5,0.1464]
[1754179763440,0.001,3411.6,3411.5,3.1464]
[1754179764352,0.001,3411.6,3411.5,0.1464]
[1754179764581,0.4968,3411.6,3411.5,0.1464]
[1754179764746,0.9298,3411.6,3411.5,0.1464]
[1754179765151,0.9298,3411.6,3411.3,0.1464]
[1754179765358,0.4958,3411.5,3411.3,0.1464]
[1754179765866,0.4958,3411.4,3411.3,0.1464]
[1754179766083,0.9288,3411.4,3411.3,0.1464]
[1754179766469,0.001,3411.6,3411.3,0.1464]
[1754179766693,0.001,3411.6,3411.4,0.479]
[1754179766854,0.001,3411.6,3411.5,0.1464]
[1754179767393,0.001,3411.6,3411.5,0.6254]
[1754179767849,0.001,3411.6,3411.5,0.9314]
[1754179768056,0.001,3411.6,3411.5,1.0778]
[1754179768478,0.001,3411.6,3411.5,0.6254]
[1754179768697,0.001,3411.6,3411.5,0.1464]
[1754179770292,0.4968,3411.6,3411.4,0.1464]
[1754179770971,0.001,3411.6,3411.4,0.1464]
[1754179772438,0.001,3411.6,3411.5,0.96071261]
[1754179772917,0.001,3411.6,3411.5,1.30592327]
[1754179773127,0.001,3411.6,3411.5,1.27661066]
[1754179773579,0.001,3411.6,3411.5,1.82661066]
[1754179773913,0.001,3411.6,3411.5,1.85592327]
[1754179774291,0.001,3411.6,3411.5,4.82661066]
[1754179775189,0.001,3411.6,3411.5,1.82661066]
[1754179775391,0.001,3411.6,3411.5,4.82661066]
[1754179775921,0.001,3411.6,3411.5,0.1464]
[1754179779223,0.001,3411.6,3411.1,0.002]
[1754179779224,0.9298,3411.6,3411.1,0.002]
[1754179779426,0.95840107,3411.5,3411.1,0.1484]
[1754179779587,0.9288,3411.5,3411.1,0.1484]
[1754179779932,0.9288,3411.4,3411.1,0.1484]
[1754179780232,0.9288,3411.3,3411.1,0.002]
[1754179780380,0.1464,3411.4,3411.1,0.002]
[1754179781013,0.1474,3411.6,3411.1,0.1484]
[1754179781197,0.4958,3411.5,3411.1,0.1484]
[1754179781402,0.95840107,3411.4,3411.1,0.002]
[1754179781599,0.1464,3411.3,3411.1,0.002]
[1754179781780,1.0752,3411.3,3411.1,0.002]
[1754179782419,0.4968,3411.6,3411.1,0.002]
[1754179782619,0.1464,3411.5,3411.1,0.002]
[1754179782791,0.6422,3411.5,3411.1,0.002]